bitfinex/quotes_BTCUSD_20220101
["timestamp","ask_amount","ask_price","bid_price","bid_amount"]
[1641019693157,0.6371344,47068.0,47067.0,0.00973425]
[1641019693417,0.013984,47068.0,47067.0,0.00973425]
[1641019693609,0.07203633,47069.0,47067.0,0.00973425]
[1641019693810,0.07203633,47069.0,47066.0,0.00017425]
[1641019694010,0.07203633,47069.0,47068.0,9.129e-05]
[1641019694211,0.6059734,47069.0,47068.0,9.129e-05]
[1641019694412,0.58708807,47069.0,47068.0,9.129e-05]
[1641019694611,0.20803762,47069.0,47068.0,9.129e-05]
[1641019694811,0.08830807,47069.0,47068.0,9.129e-05]
[1641019695011,0.13830807,47069.0,47068.0,9.129e-05]
[1641019695213,0.73265491,47076.0,47069.0,0.47]
[1641019695410,0.01831096,47070.0,47069.0,0.47]
[1641019695614,0.01831096,47070.0,47069.0,0.81013]
[1641019695813,0.72234087,47080.0,47070.0,0.88628616]
[1641019696011,0.008609,47080.0,47075.0,0.00123297]
[1641019696311,0.00010955,47079.0,47069.0,7.303e-05]
[1641019696711,9.129e-05,47078.0,47069.0,7.303e-05]
[1641019696912,0.053125,47074.0,47069.0,7.303e-05]
[1641019697171,0.053125,47074.0,47069.0,0.30793971]
[1641019697772,0.053125,47074.0,47070.0,9.262e-05]
[1641019699173,0.34,47073.0,47069.0,0.20803233]
[1641019699376,0.053125,47074.0,47069.0,0.20803233]
[1641019699573,0.053125,47074.0,47069.0,0.20303233]
[1641019700783,0.1,47075.0,47070.0,0.34013]
[1641019701019,0.05,47075.0,47071.0,0.34013]
[1641019701219,0.05,47075.0,47070.0,0.27804734]
[1641019701420,7.303e-05,47077.0,47071.0,0.34013]
[1641019701618,7.303e-05,47077.0,47070.0,0.28046684]
[1641019701820,0.05319403,47077.0,47069.0,0.19803233]
[1641019703820,0.05437868,47077.0,47069.0,0.19803233]
[1641019704021,0.053125,47073.0,47069.0,0.19803233]
[1641019707472,0.053125,47073.0,47067.0,0.00010955]
[1641019708509,0.053125,47073.0,47068.0,0.28224817]
[1641019708913,0.053125,47073.0,47069.0,7.303e-05]
[1641019709410,0.053125,47073.0,47070.0,0.34013]
[1641019709411,0.0011847,47073.0,47070.0,0.34013]
[1641019710113,0.0011847,47073.0,47069.0,0.27819958]
[1641019710315,0.0011847,47073.0,47070.0,0.34013]
[1641019710714,0.0011847,47073.0,47069.0,7.303e-05]
[1641019711318,0.0011847,47073.0,47070.0,0.34013]
[1641019711911,0.0011847,47073.0,47070.0,0.71122615]
[1641019712169,0.0011847,47073.0,47070.0,0.34013]
[1641019712370,0.0011847,47073.0,47069.0,7.303e-05]
[1641019713171,0.0097947,47073.0,47070.0,0.34013]
[1641019713370,0.0097947,47073.0,47071.0,0.34013]
[1641019714170,0.0097947,47073.0,47070.0,0.28125098]
[1641019714372,0.0097947,47073.0,47069.0,7.303e-05]
[1641019716219,0.0097947,47073.0,47070.0,0.34013]
[1641019716418,0.0097947,47073.0,47071.0,0.27698507]
[1641019717220,0.83276022,47077.0,47075.0,0.00118]
[1641019717621,0.00126822,47076.0,47075.0,0.00118]
[1641019718219,7.303e-05,47077.0,47075.0,0.34131]
[1641019718820,7.303e-05,47077.0,47075.0,0.34139091]
[1641019719223,7.303e-05,47077.0,47075.0,0.00126091]
[1641019719756,7.303e-05,47077.0,47076.0,0.59056683]
[1641019719958,7.303e-05,47077.0,47076.0,0.25043683]
[1641019721457,0.05319303,47077.0,47076.0,0.25043683]
[1641019721859,7.303e-05,47077.0,47076.0,0.39056683]
[1641019723260,7.303e-05,47077.0,47076.0,0.05043683]
[1641019723521,7.303e-05,47077.0,47076.0,0.39056683]
[1641019724320,7.303e-05,47077.0,47076.0,0.05043683]
[1641019724721,7.303e-05,47077.0,47075.0,0.00126091]
[1641019724920,0.05319203,47077.0,47075.0,0.00126091]
[1641019727167,0.053119,47077.0,47075.0,0.00126091]
[1641019728768,0.106247,47078.0,47075.0,0.00126091]
[1641019728971,0.00977666,47084.0,47075.0,0.00126091]
[1641019729171,0.3038925,47084.0,47075.0,0.00126091]
[1641019729369,0.00125249,47079.0,47075.0,0.00126091]
[1641019729772,9.129e-05,47078.0,47075.0,0.00126091]
[1641019730170,7.303e-05,47077.0,47075.0,0.00126091]
[1641019730569,9.129e-05,47078.0,47075.0,0.00126091]
[1641019731026,7.303e-05,47077.0,47076.0,0.37604846]
[1641019731824,7.303e-05,47077.0,47076.0,0.71617846]
[1641019732024,7.303e-05,47077.0,47076.0,0.71117846]
[1641019732224,7.303e-05,47077.0,47076.0,1.0377907]
[1641019736363,7.303e-05,47077.0,47076.0,0.71117846]
[1641019737366,7.303e-05,47077.0,47076.0,1.01692913]
[1641019738416,7.303e-05,47077.0,47075.0,0.6033143]
[1641019738811,7.303e-05,47077.0,47075.0,0.00126091]
[1641019739513,0.053121,47076.0,47075.0,0.00126091]
[1641019739715,7.303e-05,47077.0,47075.0,0.00126091]
[1641019740717,0.05319203,47077.0,47075.0,0.00126091]
[1641019742017,7.303e-05,47077.0,47075.0,0.00126091]
[1641019743473,7.303e-05,47077.0,47076.0,1.39013]
[1641019743672,7.303e-05,47077.0,47076.0,0.34136902]
[1641019744072,7.303e-05,47077.0,47076.0,0.44757202]
[1641019744874,7.303e-05,47077.0,47076.0,1.17085256]
[1641019745474,7.303e-05,47077.0,47076.0,0.34136902]
[1641019748222,7.303e-05,47077.0,47076.0,0.6205136]
[1641019750672,7.303e-05,47077.0,47076.0,0.62059369]
[1641019751875,7.303e-05,47077.0,47076.0,0.34144911]
[1641019753282,1.203e-05,47079.0,47077.0,0.10797565]
[1641019753529,0.00977666,47084.0,47077.0,0.10797565]
[1641019753530,8.869e-05,47084.0,47082.0,0.10002965]
[1641019753728,0.84317895,47093.0,47088.0,0.00121228]
[1641019753729,0.72557827,47093.0,47088.0,0.00121228]
[1641019754128,0.72557827,47093.0,47090.0,0.25930341]
[1641019754527,0.01049176,47093.0,47090.0,0.25930341]
[1641019754728,0.00549176,47093.0,47091.0,0.34013]
[1641019754927,0.00549354,47093.0,47091.0,0.34013]
[1641019755128,0.00549354,47093.0,47092.0,0.34013]
[1641019755529,0.00578567,47093.0,47092.0,0.34013]
[1641019756028,0.00029391,47093.0,47092.0,0.34013]
[1641019756830,0.00029391,47093.0,47092.0,0.393219]
[1641019760165,0.00029391,47093.0,47092.0,0.34013]
[1641019760367,0.00147628,47093.0,47092.0,0.34013]
[1641019760566,0.00147628,47093.0,47087.0,0.60307315]
[1641019760770,0.00147628,47093.0,47084.0,0.60307315]
[1641019761026,0.00027387,47092.0,47084.0,0.60307315]
[1641019761326,0.00118415,47093.0,47088.0,6.902e-05]
[1641019761327,0.00025561,47091.0,47088.0,6.902e-05]
[1641019761727,0.053105,47089.0,47088.0,6.902e-05]
[1641019762127,0.0533241,47089.0,47088.0,6.902e-05]
[1641019762728,0.0002191,47089.0,47088.0,6.902e-05]
[1641019765865,0.00140335,47089.0,47088.0,6.902e-05]
[1641019766862,0.00140335,47089.0,47084.0,0.28472131]
[1641019767060,0.00140335,47089.0,47085.0,0.34013]
[1641019767263,0.00020084,47088.0,47084.0,0.60307315]
[1641019767461,0.00020084,47088.0,47082.0,0.00979986]
[1641019767462,0.00020084,47088.0,47082.0,0.61287301]
[1641019767662,0.00018258,47087.0,47082.0,0.61287301]
[1641019768063,0.00016432,47086.0,47082.0,0.61287301]
[1641019768267,0.00016432,47086.0,47082.0,0.60307315]
[1641019768521,0.00014607,47085.0,47079.0,0.60307315]
[1641019768816,0.00012781,47084.0,47079.0,0.60307315]
[1641019769019,0.00012781,47084.0,47077.0,1.01112218]
[1641019769020,0.053111,47083.0,47080.0,0.34013]
[1641019769217,0.05322055,47083.0,47080.0,0.34013]
[1641019769417,9.129e-05,47082.0,47078.0,0.60307315]
[1641019769618,9.129e-05,47082.0,47079.0,0.34013]
[1641019769817,0.053111,47083.0,47080.0,0.34013]
[1641019769818,7.303e-05,47081.0,47080.0,0.34013]
[1641019770018,7.303e-05,47081.0,47078.0,0.60307315]
[1641019770221,7.303e-05,47081.0,47079.0,0.34013]
[1641019771220,0.00125749,47081.0,47079.0,0.34013]
[1641019771619,0.00125749,47081.0,47080.0,0.60307315]
[1641019771819,0.00125749,47081.0,47080.0,0.94320315]
[1641019772022,0.00125749,47081.0,47080.0,0.9432741]
[1641019772464,0.00125749,47081.0,47080.0,0.34020095]
[1641019774870,0.00125749,47081.0,47080.0,0.6031441]
[1641019775469,0.00125749,47081.0,47080.0,7.095e-05]
[1641019775923,0.05437149,47081.0,47080.0,7.095e-05]
[1641019778521,0.00125749,47081.0,47080.0,7.095e-05]
[1641019778722,7.749e-05,47081.0,47080.0,7.095e-05]
[1641019779125,7.749e-05,47081.0,47080.0,0.34020095]
[1641019779321,7.749e-05,47081.0,47080.0,0.44020095]
[1641019779961,7.749e-05,47081.0,47080.0,0.71126874]
[1641019780162,0.710164,47088.0,47080.0,0.71126874]
[1641019780361,0.83268719,47090.0,47087.0,0.26618696]
[1641019780564,0.718774,47094.0,47087.0,0.91725558]
[1641019780964,0.0002191,47093.0,47087.0,0.91725558]
[1641019781366,0.00020084,47092.0,47087.0,0.97034858]
[1641019781564,0.00020084,47092.0,47088.0,0.34013]
[1641019781766,0.718774,47094.0,47088.0,0.34013]
[1641019781767,0.00018258,47091.0,47088.0,0.34013]
[1641019782067,0.00861,47094.0,47090.0,0.34013]
[1641019782367,0.0002191,47093.0,47091.0,0.34013]
[1641019782765,0.00861,47094.0,47091.0,0.34013]
[1641019782766,0.00020084,47092.0,47091.0,0.34013]
[1641019782966,0.00020084,47092.0,47091.0,0.62245456]
[1641019783726,0.00020084,47092.0,47091.0,1.22597027]
[1641019783926,0.00020084,47092.0,47091.0,1.22725687]
[1641019784329,0.00020084,47092.0,47091.0,0.62374116]
[1641019784526,0.00020084,47092.0,47091.0,0.67682816]
[1641019785026,0.00020084,47092.0,47091.0,0.3945036]
[1641019785228,0.00020084,47092.0,47091.0,0.393217]
[1641019785426,0.00020084,47092.0,47091.0,0.68425078]
[1641019788986,0.00881084,47092.0,47091.0,0.68425078]
[1641019789286,8.4e-07,47092.0,47091.0,0.88550765]
[1641019789491,8.4e-07,47092.0,47091.0,0.9423481]
[1641019789687,8.4e-07,47092.0,47091.0,0.55131432]
[1641019790090,8.4e-07,47092.0,47091.0,1.27867695]
[1641019790688,8.4e-07,47092.0,47091.0,0.55131432]
[1641019791128,8.4e-07,47092.0,47091.0,1.29147708]
[1641019791329,8.4e-07,47092.0,47091.0,1.39147708]
[1641019791527,8.4e-07,47092.0,47091.0,1.29147708]
[1641019791728,8.4e-07,47092.0,47091.0,1.34368708]
[1641019792232,8.4e-07,47092.0,47091.0,1.35246039]
[1641019792429,8.4e-07,47092.0,47091.0,1.25246039]
[1641019793029,8.4e-07,47092.0,47091.0,1.24340994]
[1641019793229,8.4e-07,47092.0,47091.0,1.24347145]
[1641019793430,8.4e-07,47092.0,47091.0,1.14221458]
[1641019793630,8.4e-07,47092.0,47091.0,1.16417047]
[1641019793829,8.4e-07,47092.0,47091.0,1.14259703]
[1641019794230,8.4e-07,47092.0,47091.0,1.16388567]
[1641019794430,8.4e-07,47092.0,47091.0,0.43652304]
[1641019795375,8.4e-07,47092.0,47091.0,0.34019151]
[1641019795576,8.4e-07,47092.0,47091.0,6.151e-05]
[1641019795776,0.00120653,47092.0,47091.0,6.151e-05]
[1641019796179,1.34974282,47092.0,47091.0,6.151e-05]
[1641019796378,0.7218674,47092.0,47091.0,6.151e-05]
[1641019796581,0.6218674,47092.0,47091.0,6.151e-05]
[1641019798425,0.6718674,47092.0,47091.0,6.151e-05]
[1641019798617,0.7168674,47092.0,47091.0,6.151e-05]
[1641019799218,0.39474282,47092.0,47091.0,6.151e-05]
[1641019800622,0.64195468,47092.0,47091.0,6.151e-05]
[1641019800821,0.39474282,47092.0,47091.0,6.151e-05]
[1641019801023,8.4e-07,47092.0,47091.0,6.151e-05]
[1641019802873,1.19095039,47092.0,47091.0,6.151e-05]
[1641019803074,1.43563284,47092.0,47091.0,6.151e-05]
[1641019803274,1.48563284,47092.0,47091.0,6.151e-05]
[1641019803479,0.48693104,47092.0,47091.0,6.151e-05]
[1641019803674,0.79602265,47092.0,47091.0,6.151e-05]
[1641019805281,0.89602265,47092.0,47091.0,6.151e-05]
[1641019805479,1.22296707,47092.0,47091.0,6.151e-05]
[1641019805679,0.6513402,47092.0,47075.0,0.00118]
[1641019805940,0.00129528,47076.0,47075.0,0.00118]
[1641019806935,0.00129528,47076.0,47075.0,0.00149038]
[1641019807134,0.053126,47076.0,47075.0,0.00149038]
[1641019807335,0.106251,47077.0,47075.0,0.00149038]
[1641019807336,0.156251,47077.0,47075.0,0.00149038]
[1641019807536,0.206251,47077.0,47075.0,0.00149038]
[1641019807735,0.206251,47077.0,47076.0,0.00029213]
[1641019809236,0.61695992,47077.0,47076.0,0.00029213]
[1641019809442,0.34720055,47077.0,47076.0,0.00029213]
[1641019809682,0.44720055,47077.0,47076.0,0.00029213]
[1641019809883,0.93841905,47077.0,47076.0,0.00029213]
[1641019810286,1.24627237,47077.0,47076.0,0.00029213]
[1641019810487,0.93841905,47077.0,47076.0,0.00029213]
[1641019810685,0.93841905,47077.0,47075.0,0.00118]
[1641019810686,1.33267013,47076.0,47075.0,0.00118]
[1641019810888,1.47490434,47076.0,47075.0,0.00118]
[1641019811086,1.57490434,47076.0,47075.0,0.00118]
[1641019811489,0.62490433,47076.0,47075.0,0.00118]
[1641019811683,0.81493968,47076.0,47075.0,0.00118]
[1641019811885,0.71493968,47076.0,47075.0,0.00118]
[1641019812986,0.42490434,47076.0,47075.0,0.00118]
[1641019813424,0.52490434,47076.0,47075.0,0.00118]
[1641019814218,0.95620982,47076.0,47075.0,0.00118]
[1641019814818,0.24223421,47076.0,47075.0,0.00118]
[1641019815119,0.14223421,47076.0,47075.0,0.00118]
[1641019816318,0.2422342,47076.0,47075.0,0.00118]
[1641019816921,0.14223421,47076.0,47075.0,0.00118]
[1641019817971,0.2422342,47076.0,47075.0,0.00118]
[1641019818570,0.14223421,47076.0,47075.0,0.00118]
[1641019818770,0.2422342,47076.0,47075.0,0.00118]
[1641019818971,0.85620982,47076.0,47075.0,0.00118]
[1641019819171,0.95620982,47076.0,47075.0,0.00118]
[1641019820172,1.05620981,47076.0,47075.0,0.00118]
[1641019820373,0.3422342,47076.0,47075.0,0.00118]
[1641019820571,0.2422342,47076.0,47075.0,0.00118]
[1641019820772,0.95374821,47076.0,47075.0,0.00118]
[1641019821030,1.05374821,47076.0,47075.0,0.00118]
[1641019821628,0.95374822,47076.0,47075.0,0.00118]
[1641019821928,0.95374822,47076.0,47073.0,0.0063941]
[1641019821929,1.103141,47074.0,47073.0,0.0063941]
[1641019822126,1.34529611,47074.0,47073.0,0.0063941]
[1641019822325,1.39529611,47074.0,47073.0,0.0063941]
[1641019822526,2.2279833,47074.0,47073.0,0.0063941]
[1641019822929,1.85948901,47074.0,47073.0,0.0063941]
[1641019823327,0.80948901,47074.0,47073.0,0.0063941]
[1641019823728,1.10441122,47069.0,47068.0,0.00011]
[1641019824132,0.20441122,47069.0,47068.0,0.00025606]
[1641019824530,0.30441121,47069.0,47068.0,0.00025606]
[1641019824763,0.20441122,47069.0,47068.0,0.00025606]
[1641019824963,0.30441121,47069.0,47068.0,0.00025606]
[1641019826364,0.20441121,47069.0,47068.0,0.00025606]
[1641019827567,1.25441121,47069.0,47067.0,0.00033]
[1641019827966,1.35441121,47069.0,47067.0,0.00033]
[1641019828168,1.35441121,47069.0,47064.0,0.00033]
[1641019828169,1.68266228,47069.0,47064.0,0.00033]
[1641019828428,1.73580728,47069.0,47064.0,0.00033]
[1641019828620,1.05,47066.0,47064.0,0.00033]
[1641019828824,1.19094955,47066.0,47064.0,0.00033]
[1641019829022,1.29094955,47066.0,47064.0,0.00033]
[1641019829223,0.24094955,47066.0,47064.0,0.00033]
[1641019829623,0.1,47066.0,47064.0,0.00033]
[1641019830022,0.15759012,47067.0,47064.0,0.00033]
[1641019830622,0.14094955,47066.0,47064.0,0.00033]
[1641019832022,0.14094955,47066.0,47064.0,0.00022]
[1641019832265,0.0531417,47064.0,47062.0,0.09654]
[1641019832466,0.1062837,47064.0,47062.0,0.09654]
[1641019832665,0.1562837,47064.0,47063.0,9.129e-05]
[1641019833866,0.1062837,47064.0,47063.0,9.129e-05]
[1641019837114,0.24723325,47064.0,47063.0,9.129e-05]
[1641019837415,0.2485725,47064.0,47063.0,9.129e-05]
[1641019838615,0.3485725,47064.0,47063.0,9.129e-05]
[1641019839016,0.4485725,47064.0,47063.0,9.129e-05]
[1641019841882,0.89,47063.0,47062.0,0.09163129]
[1641019842178,0.91,47063.0,47062.0,0.09163129]
[1641019842379,0.1,47063.0,47062.0,0.09163129]
[1641019842981,0.259436,47063.0,47062.0,0.091711]
[1641019843427,0.159436,47063.0,47062.0,0.091711]
[1641019845128,1.209436,47063.0,47062.0,0.086711]
[1641019845328,0.159436,47063.0,47062.0,0.086711]
[1641019845528,0.259436,47063.0,47062.0,0.086711]
[1641019846528,0.159436,47063.0,47062.0,0.086711]
[1641019847977,0.98872245,47063.0,47062.0,0.086711]
[1641019848176,1.08872245,47063.0,47062.0,0.086711]
[1641019851019,0.259436,47063.0,47062.0,0.086711]
[1641019851220,0.69895612,47063.0,47062.0,0.086711]
[1641019851423,0.159436,47063.0,47062.0,0.086711]
[1641019851619,0.259436,47063.0,47062.0,0.086711]
[1641019852220,0.79895612,47063.0,47062.0,0.086711]
[1641019852819,0.259436,47063.0,47062.0,0.086711]
[1641019853021,0.159436,47063.0,47062.0,0.086711]
[1641019858732,0.159436,47063.0,47062.0,0.081711]
[1641019860636,0.13113001,47063.0,47062.0,0.081711]
[1641019861838,0.05448125,47064.0,47062.0,0.081711]
[1641019862585,0.00133925,47064.0,47062.0,0.081711]
[1641019862988,0.0025242,47064.0,47062.0,0.081711]
[1641019863988,0.0556582,47064.0,47062.0,0.081711]
[1641019868233,0.1056582,47064.0,47062.0,0.081711]
[1641019871870,0.8138373,47064.0,47062.0,0.081711]
[1641019872272,0.7081791,47063.0,47062.0,0.081711]
[1641019873536,0.8638373,47064.0,47062.0,0.081711]
[1641019874038,0.98186715,47064.0,47062.0,0.081711]
[1641019874639,0.7054573,47063.0,47062.0,0.081711]
[1641019876639,0.1556582,47064.0,47062.0,0.081711]
[1641019876839,0.98186715,47064.0,47062.0,0.081711]
[1641019877280,0.70487693,47063.0,47062.0,0.081711]
[1641019882740,0.86053513,47064.0,47062.0,0.081711]
[1641019884544,0.70487693,47063.0,47062.0,0.081711]
[1641019885585,0.75487693,47063.0,47062.0,0.071711]
[1641019886388,0.05,47063.0,47062.0,0.071711]
[1641019886685,0.0556582,47064.0,47062.0,0.071711]
[1641019886884,0.88186715,47064.0,47062.0,0.071711]
[1641019887283,0.0556582,47064.0,47062.0,0.071711]
[1641019887986,0.7047609,47063.0,47062.0,0.071711]
[1641019891846,0.7547609,47063.0,47062.0,0.071711]
[1641019894481,0.7047609,47063.0,47062.0,0.071711]
[1641019895684,0.0025242,47064.0,47062.0,0.071711]
[1641019897447,0.0025242,47064.0,47062.0,0.071154]
[1641019901089,0.0556572,47064.0,47062.0,0.071154]
[1641019904230,0.7604181,47064.0,47062.0,0.071154]
[1641019906535,0.7072851,47064.0,47062.0,0.071154]
[1641019907038,0.0025242,47064.0,47062.0,0.071154]
[1641019915274,0.0025242,47064.0,47063.0,0.29293128]
[1641019915476,0.7047609,47067.0,47064.0,0.0012661]
[1641019915674,0.7047609,47067.0,47065.0,0.1]
[1641019915875,0.7047609,47069.0,47065.0,0.1]
[1641019916076,0.7047609,47069.0,47064.0,0.0012661]
[1641019916277,0.7047609,47069.0,47068.0,0.24741146]
[1641019916475,0.82620895,47071.0,47068.0,0.24741146]
[1641019916776,0.82620895,47075.0,47070.0,0.24472312]
[1641019917179,0.82646456,47077.0,47070.0,0.24472312]
[1641019917380,0.82646456,47077.0,47070.0,0.24597151]
[1641019917577,0.00023735,47076.0,47071.0,0.34013]
[1641019917775,0.00023735,47076.0,47072.0,0.2822405]
[1641019917975,0.0002191,47075.0,47073.0,0.34013]
[1641019918428,0.00020084,47074.0,47073.0,0.34013]
[1641019919221,0.00020084,47074.0,47073.0,0.35974796]
[1641019920226,0.00020084,47074.0,47073.0,0.03953454]
[1641019920422,0.00020084,47074.0,47073.0,0.36004658]
[1641019920623,0.00020084,47074.0,47073.0,0.01991658]
[1641019921323,0.00020084,47074.0,47073.0,0.04154973]
[1641019921523,0.00020084,47074.0,47073.0,0.02163315]
[1641019922373,0.00020084,47074.0,47070.0,0.24472312]
[1641019922577,0.00020084,47074.0,47071.0,0.34013]
[1641019922774,0.00018258,47073.0,47070.0,0.24472312]
[1641019923175,0.00016432,47072.0,47071.0,0.34013]
[1641019923377,0.00016432,47072.0,47071.0,0.61272511]
[1641019923777,0.00016432,47072.0,47071.0,0.63119566]
[1641019924377,0.00016432,47072.0,47071.0,0.63189359]
[1641019925378,0.00016432,47072.0,47071.0,0.65315898]
[1641019925579,0.00016432,47072.0,47071.0,0.6339905]
[1641019926231,0.00016432,47072.0,47071.0,0.65405601]
[1641019926434,0.00016432,47072.0,47071.0,0.63279062]
[1641019927232,0.00016432,47072.0,47071.0,0.6541605]
[1641019927431,0.00016432,47072.0,47071.0,0.63409499]
[1641019928032,0.00016432,47072.0,47071.0,0.63416773]
[1641019928248,0.00016432,47072.0,47071.0,0.65554937]
[1641019928432,0.00016432,47072.0,47071.0,0.63417949]
[1641019929234,0.82620895,47078.0,47071.0,0.63417949]
[1641019929669,9.129e-05,47077.0,47071.0,0.63417949]
[1641019929870,9.129e-05,47077.0,47071.0,0.65289834]
[1641019930071,0.053116,47079.0,47071.0,0.65289834]
[1641019930072,7.303e-05,47076.0,47071.0,0.6315167]
[1641019930271,7.303e-05,47076.0,47071.0,0.65051966]
[1641019930472,0.00010955,47078.0,47071.0,0.63180081]
[1641019930671,0.00010955,47078.0,47077.0,0.32881398]
[1641019931273,0.00010955,47078.0,47077.0,0.35057613]
[1641019932476,0.00010955,47078.0,47077.0,0.34877931]
[1641019933278,0.00010955,47078.0,47077.0,0.3675438]
[1641019933531,0.00010955,47078.0,47077.0,0.68770847]
[1641019934333,0.00134296,47078.0,47077.0,0.70896572]
[1641019934532,0.00134296,47078.0,47077.0,0.69020123]
[1641019935432,0.00134296,47078.0,47077.0,0.70934585]
[1641019935637,0.00134296,47078.0,47077.0,0.96809418]
[1641019935833,0.00134296,47078.0,47077.0,0.96806256]
[1641019935834,0.00011296,47078.0,47077.0,0.96806256]
[1641019936335,0.00011296,47078.0,47077.0,0.98707644]
[1641019936535,0.00011296,47078.0,47077.0,0.96793182]
[1641019937382,0.00011296,47078.0,47077.0,0.98648338]
[1641019938285,0.00011296,47078.0,47077.0,0.94891794]
[1641019938682,0.00011296,47078.0,47077.0,1.04898534]
[1641019938982,0.00011296,47078.0,47077.0,1.06724016]
[1641019939382,0.00011296,47078.0,47077.0,1.08656944]
[1641019939585,0.00011296,47078.0,47077.0,1.06831462]
[1641019939586,0.00011408,47078.0,47077.0,1.06831462]
[1641019940384,0.00011408,47078.0,47077.0,1.08966007]
[1641019940587,0.00011408,47078.0,47077.0,1.07033079]
[1641019940789,0.00872408,47078.0,47077.0,1.07033079]
[1641019941430,0.00872408,47078.0,47077.0,0.38343834]
[1641019941626,0.00872408,47078.0,47077.0,0.36209289]
[1641019941826,0.00872408,47078.0,47077.0,0.02196289]
[1641019942629,0.00872408,47078.0,47077.0,0.04252835]
[1641019942828,0.00872408,47078.0,47077.0,0.02063286]
[1641019943629,0.00872408,47078.0,47077.0,6.74e-05]
[1641019944682,0.00872408,47078.0,47077.0,0.3401974]
[1641019944883,0.00871955,47078.0,47077.0,0.3401974]
[1641019945282,0.00871955,47078.0,47077.0,0.5975421]
[1641019945482,0.00871955,47078.0,47077.0,0.61926814]
[1641019946581,0.00871955,47078.0,47077.0,0.64067892]
[1641019946782,0.00871955,47078.0,47077.0,0.61895288]
[1641019947584,0.00871955,47078.0,47077.0,0.61559262]
[1641019948425,0.00871955,47078.0,47077.0,0.63621656]
[1641019948724,0.00871955,47078.0,47077.0,0.61816604]
[1641019949322,0.00871955,47078.0,47077.0,0.90130536]
[1641019949522,0.00871955,47078.0,47077.0,0.92102344]
[1641019949722,0.00871955,47078.0,47077.0,0.9003995]
[1641019949923,0.00871955,47078.0,47077.0,0.90149374]
[1641019950522,0.00871955,47078.0,47077.0,0.92129655]
[1641019950722,0.00871955,47078.0,47077.0,0.90286042]
[1641019950922,0.00871955,47078.0,47077.0,0.61862686]
[1641019951122,0.00871955,47078.0,47077.0,0.89552813]
[1641019951328,0.00871955,47078.0,47077.0,0.61862686]
[1641019951523,0.00871955,47078.0,47077.0,0.63913383]
[1641019951722,0.00871955,47078.0,47077.0,0.61933102]
[1641019952685,0.00871955,47078.0,47077.0,0.61892282]
[1641019953584,0.00871955,47078.0,47077.0,0.37982184]
[1641019953785,0.00871955,47078.0,47077.0,0.35972307]
[1641019954590,0.00871955,47078.0,47077.0,0.38095331]
[1641019954784,0.00871955,47078.0,47077.0,0.36142764]
[1641019954985,0.1496691,47078.0,47077.0,0.36142764]
[1641019955486,0.1496691,47078.0,47077.0,0.3804455]
[1641019955688,0.1496691,47078.0,47077.0,0.35921526]
[1641019956132,0.00871955,47078.0,47077.0,0.35921526]
[1641019956537,0.00871955,47078.0,47077.0,0.38020071]
[1641019956733,0.00871955,47078.0,47077.0,0.36118285]
[1641019957534,0.00871955,47078.0,47077.0,0.66630891]
[1641019957735,0.00871955,47078.0,47077.0,0.64532346]
[1641019958534,0.00871955,47078.0,47077.0,0.66446369]
[1641019958934,0.00871955,47078.0,47077.0,0.62351185]
[1641019959338,0.00871955,47078.0,47077.0,0.72376126]
[1641019959535,0.00871955,47078.0,47077.0,0.74513081]
[1641019960375,0.00871955,47078.0,47077.0,0.84513081]
[1641019960572,0.00871955,47078.0,47077.0,0.82376126]
[1641019960774,0.00871955,47078.0,47077.0,0.84186022]
[1641019960974,0.00861,47078.0,47077.0,0.84186022]
[1641019961275,0.00861,47078.0,47077.0,0.74283808]
[1641019961675,0.00861,47078.0,47077.0,0.74374927]
[1641019962075,0.00861,47078.0,47077.0,0.83465835]
[1641019962474,0.00861,47078.0,47077.0,0.74374927]
[1641019962674,0.00861,47078.0,47077.0,0.76221457]
[1641019962874,0.00861,47078.0,47077.0,0.74320442]
[1641019963275,0.00861,47078.0,47077.0,0.64320442]
[1641019963540,0.00861,47078.0,47077.0,0.38003739]
[1641019964343,0.00861,47078.0,47077.0,0.3401974]
[1641019964541,0.00861,47078.0,47077.0,0.36001641]
[1641019965545,0.00861,47078.0,47077.0,0.37844309]
[1641019965742,0.00861,47078.0,47077.0,0.35862408]
[1641019966344,0.00861,47078.0,47077.0,0.01849408]
[1641019966543,0.00861,47078.0,47077.0,0.03954985]
[1641019966742,0.00861,47078.0,47077.0,0.02112317]
[1641019967492,0.14955955,47078.0,47077.0,0.02112317]
[1641019967894,0.14955955,47078.0,47077.0,6.74e-05]
[1641019968493,0.42648143,47078.0,47077.0,6.74e-05]
[1641019970497,0.00861,47078.0,47077.0,6.74e-05]
[1641019971551,0.14955955,47078.0,47077.0,6.74e-05]
[1641019973456,0.00861,47078.0,47077.0,6.74e-05]
[1641019974055,0.00861,47078.0,47077.0,0.3401974]
[1641019974257,0.00861,47078.0,47077.0,6.74e-05]
[1641019976278,0.00861,47078.0,47077.0,0.34143149]
[1641019977678,0.00861,47078.0,47077.0,0.36096858]
[1641019978733,0.00861,47078.0,47077.0,0.38033161]
[1641019978935,0.00861,47078.0,47077.0,0.36079452]
[1641019980332,0.00861,47078.0,47077.0,0.37949733]
[1641019980535,0.00861,47078.0,47077.0,0.3601343]
[1641019980733,0.00861,47078.0,47077.0,0.37954761]
[1641019981537,0.00861,47078.0,47077.0,0.34143149]
[1641019981736,0.00861,47078.0,47077.0,0.3626371]
[1641019982785,0.00861,47078.0,47077.0,0.38138691]
[1641019982990,0.00861,47078.0,47077.0,0.3601813]
[1641019983185,0.00861,47078.0,47077.0,0.96357864]
[1641019983786,0.00861,47078.0,47077.0,0.98282025]
[1641019983987,0.00861,47078.0,47077.0,0.96407044]
[1641019984888,0.00861,47078.0,47077.0,0.9840942]
[1641019985946,0.00861,47078.0,47077.0,0.96396419]
[1641019986742,0.00861,47078.0,47077.0,0.98556807]
[1641019986939,0.00861,47078.0,47077.0,0.96643271]
[1641019987342,0.00861,47078.0,47077.0,0.96519862]
[1641019987543,0.00861,47078.0,47077.0,0.62506862]
[1641019987846,0.00861,47078.0,47077.0,0.02167128]
[1641019988443,0.00861,47078.0,47077.0,0.04129311]
[1641019988646,0.00861,47078.0,47077.0,0.01968923]
[1641019989047,0.00861,47078.0,47077.0,6.74e-05]
[1641019989692,0.20388707,47078.0,47077.0,6.74e-05]
[1641019989892,0.33327707,47078.0,47077.0,6.74e-05]
[1641019990092,0.48327707,47078.0,47077.0,6.74e-05]
[1641019990792,0.48449013,47078.0,47077.0,6.74e-05]
[1641019991591,0.77810524,47078.0,47077.0,6.74e-05]
[1641019991991,1.07771593,47078.0,47077.0,6.74e-05]
[1641019992792,0.78410082,47078.0,47077.0,6.74e-05]
[1641019992992,0.88410081,47078.0,47077.0,6.74e-05]
[1641019993201,0.91487081,47078.0,47077.0,6.74e-05]
[1641019993445,0.91487081,47078.0,47071.0,0.00975596]
[1641019993446,1.05,47077.0,47071.0,0.00975596]
[1641019993638,1.19094955,47072.0,47071.0,0.00975596]
[1641019994039,1.24094955,47072.0,47071.0,0.00975596]